[Event "Open Nuevo Centro. Jornada 1"]
[Site "Chess.com"]
[Date "2020.06.19"]
[Round "3"]
[White "Rodriguez, Mathias"]
[Black "G�mez Alonso, �scar"]
[Result "1-0"]
[WhiteElo "2013"]
[BlackElo "1761"]
[TimeControl "180+2"]
[EndTime "11:03:51 PDT"]
[Termination "Victoria de niguil por abandono"]

1. e4 {[%clk 0:03:01.9]} 1... c5 {[%clk 0:03:00.1]} 2. Nf3 {[%clk 0:03:02.6]}
2... e6 {[%clk 0:03:01]} 3. d4 {[%clk 0:03:02.5]} 3... cxd4 {[%clk 0:03:02.9]}
4. Nxd4 {[%clk 0:03:04.4]} 4... Nf6 {[%clk 0:03:02.4]} 5. Nc3 {[%clk 0:03:05.1]}
5... Nc6 {[%clk 0:03:03.4]} 6. Ndb5 {[%clk 0:03:05]} 6... d6 {[%clk 0:03:03]} 7.
Bf4 {[%clk 0:03:05.2]} 7... e5 {[%clk 0:02:44.7]} 8. Bg5 {[%clk 0:03:01.1]} 8...
a6 {[%clk 0:02:44.6]} 9. Na3 {[%clk 0:03:01]} 9... b5 {[%clk 0:02:36.3]} 10.
Bxf6 {[%clk 0:03:00.2]} 10... Qxf6 {[%clk 0:02:28]} 11. Nd5 {[%clk 0:03:02.1]}
11... Qd8 {[%clk 0:02:28.3]} 12. Bxb5 {[%clk 0:03:01.1]} 12... axb5 {[%clk
0:02:00.4]} 13. Nxb5 {[%clk 0:03:03]} 13... Qa5+ {[%clk 0:01:54.4]} 14. c3
{[%clk 0:03:02.6]} 14... Be6 {[%clk 0:00:52.4]} 15. Nbc7+ {[%clk 0:02:59.4]}
15... Kd7 {[%clk 0:00:52.5]} 16. Nxa8 {[%clk 0:02:59.6]} 16... Bxd5 {[%clk
0:00:47.8]} 17. exd5 {[%clk 0:03:01.5]} 17... Ne7 {[%clk 0:00:44.4]} 18. a4
{[%clk 0:02:27.7]} 18... Qxa8 {[%clk 0:00:44.7]} 19. c4 {[%clk 0:02:26]} 19...
Qa5+ {[%clk 0:00:38.7]} 20. Ke2 {[%clk 0:02:25.9]} 20... Nf5 {[%clk 0:00:37.6]}
21. Re1 {[%clk 0:02:02.3]} 21... Nd4+ {[%clk 0:00:38.4]} 22. Kf1 {[%clk
0:02:02.3]} 22... Be7 {[%clk 0:00:38.2]} 23. Rb1 {[%clk 0:01:58.6]} 23... Rb8
{[%clk 0:00:37]} 24. Qg4+ {[%clk 0:01:58.7]} 24... f5 {[%clk 0:00:28.9]} 25.
Qxg7 {[%clk 0:01:58.4]} 25... Qd2 {[%clk 0:00:23.2]} 26. Qg3 {[%clk 0:01:41.8]}
26... Rxb2 {[%clk 0:00:20.1]} 27. Rxb2 {[%clk 0:01:42]} 27... Qxb2 {[%clk
0:00:21]} 28. Qd3 {[%clk 0:01:37.4]} 28... Qb3 {[%clk 0:00:21.8]} 29. Qxb3
{[%clk 0:01:14.3]} 29... Nxb3 {[%clk 0:00:22.3]} 30. Ke2 {[%clk 0:01:16.2]}
30... Nc5 {[%clk 0:00:23]} 31. Ra1 {[%clk 0:01:17.1]} 31... Bd8 {[%clk
0:00:24.2]} 32. f3 {[%clk 0:01:14]} 32... Ba5 {[%clk 0:00:24.7]} 33. Rb1 {[%clk
0:01:12.1]} 33... Kc7 {[%clk 0:00:25.1]} 34. Rb5 {[%clk 0:01:10.1]} 34... Bc3
{[%clk 0:00:24.2]} 35. a5 {[%clk 0:01:07.3]} 35... Bd4 {[%clk 0:00:24.1]} 36.
Kd1 {[%clk 0:00:59.9]} 36... f4 {[%clk 0:00:25.2]} 37. Kc2 {[%clk 0:00:59.7]}
37... h5 {[%clk 0:00:24.3]} 38. Kb1 {[%clk 0:00:42.3]} 38... h4 {[%clk
0:00:25.3]} 39. Ka2 {[%clk 0:00:41]} 39... Bg1 {[%clk 0:00:25.7]} 40. h3 {[%clk
0:00:41.3]} 40... Bd4 {[%clk 0:00:26.5]} 41. Ka3 {[%clk 0:00:41.4]} 41... Nd3
{[%clk 0:00:27.6]} 42. a6 {[%clk 0:00:38.2]} 42... Nc5 {[%clk 0:00:18.9]} 43. a7
{[%clk 0:00:38]} 43... Nd3 {[%clk 0:00:12.5]} 44. a8=Q {[%clk 0:00:35]} 44...
Bc5+ {[%clk 0:00:13.5]} 45. Rxc5+ {[%clk 0:00:33.1]} 45... Nxc5 {[%clk
0:00:14.2]} 46. Qc6+ {[%clk 0:00:34]} 46... Kd8 {[%clk 0:00:15.7]} 47. Qxd6+
{[%clk 0:00:34.1]} 1

[Event "Open Nuevo Centro. Jornada 1"]
[Site "Chess.com"]
[Date "2020.06.19"]
[Round "3"]
[White "Ursariu, Nikolas Victor"]
[Black "Cebolla Ruiz, David"]
[Result "0-1"]
[WhiteElo "1225"]
[BlackElo "1739"]
[TimeControl "180+2"]
[EndTime "11:03:52 PDT"]
[Termination "Victoria de Dabelcebolla por jaque mate"]

1. e4 {[%clk 0:03:01.9]} 1... c6 {[%clk 0:03:00.5]} 2. Nf3 {[%clk 0:03:03]} 2...
d5 {[%clk 0:03:00.8]} 3. Nc3 {[%clk 0:03:00.6]} 3... Nf6 {[%clk 0:03:00.5]} 4.
exd5 {[%clk 0:03:01.1]} 4... cxd5 {[%clk 0:02:59.4]} 5. Bb5+ {[%clk 0:02:56.7]}
5... Bd7 {[%clk 0:02:56.1]} 6. Bxd7+ {[%clk 0:02:56.8]} 6... Nbxd7 {[%clk
0:02:56.5]} 7. d4 {[%clk 0:02:55.7]} 7... e6 {[%clk 0:02:56.5]} 8. O-O {[%clk
0:02:55.2]} 8... Be7 {[%clk 0:02:52.4]} 9. Bg5 {[%clk 0:02:49.2]} 9... O-O
{[%clk 0:02:52.6]} 10. Ne5 {[%clk 0:02:34.7]} 10... Nxe5 {[%clk 0:02:47.4]} 11.
dxe5 {[%clk 0:02:32.8]} 11... Ne4 {[%clk 0:02:47.8]} 12. Bxe7 {[%clk 0:02:28.5]}
12... Qxe7 {[%clk 0:02:45.8]} 13. Nxe4 {[%clk 0:02:27.7]} 13... dxe4 {[%clk
0:02:47]} 14. Re1 {[%clk 0:02:21.9]} 14... Rfd8 {[%clk 0:02:46.5]} 15. Qe2
{[%clk 0:02:17.1]} 15... Rd4 {[%clk 0:02:46.3]} 16. Rad1 {[%clk 0:02:11.6]}
16... Rad8 {[%clk 0:02:45.5]} 17. c3 {[%clk 0:02:05.1]} 17... Rxd1 {[%clk
0:02:44.6]} 18. Rxd1 {[%clk 0:02:05]} 18... Rxd1+ {[%clk 0:02:44.7]} 19. Qxd1
{[%clk 0:02:05.6]} 19... Kf8 {[%clk 0:02:32.8]} 20. Qe2 {[%clk 0:01:58.5]} 20...
Qd7 {[%clk 0:02:19.8]} 21. h3 {[%clk 0:01:55.5]} 21... Qd5 {[%clk 0:02:20.1]}
22. Qe3 {[%clk 0:01:42.2]} 22... Qxa2 {[%clk 0:02:07.5]} 23. Qxe4 {[%clk
0:01:38.6]} 23... Qxb2 {[%clk 0:02:03.2]} 24. Qd4 {[%clk 0:01:33.3]} 24... Qb6
{[%clk 0:01:34.4]} 25. Qxb6 {[%clk 0:01:29.4]} 25... axb6 {[%clk 0:01:35.2]} 26.
Kf1 {[%clk 0:01:30.9]} 26... Ke8 {[%clk 0:01:36.5]} 27. Ke2 {[%clk 0:01:31.9]}
27... Kd7 {[%clk 0:01:37.8]} 28. Kd3 {[%clk 0:01:33.4]} 28... Kc6 {[%clk
0:01:37.9]} 29. Kc4 {[%clk 0:01:33.4]} 29... b5+ {[%clk 0:01:36.9]} 30. Kd4
{[%clk 0:01:31.3]} 30... f6 {[%clk 0:01:29.4]} 31. exf6 {[%clk 0:01:31.5]} 31...
gxf6 {[%clk 0:01:30.2]} 32. f4 {[%clk 0:01:31.6]} 32... Kd6 {[%clk 0:01:30.4]}
33. g3 {[%clk 0:01:22.9]} 33... e5+ {[%clk 0:01:27.6]} 34. fxe5+ {[%clk
0:01:24.2]} 34... fxe5+ {[%clk 0:01:28.1]} 35. Kd3 {[%clk 0:01:21.7]} 35... Kd5
{[%clk 0:01:25.1]} 36. g4 {[%clk 0:01:19.5]} 36... e4+ {[%clk 0:00:42.2]} 37.
Kd2 {[%clk 0:01:17.8]} 37... Kc4 {[%clk 0:00:38.5]} 38. h4 {[%clk 0:01:14.7]}
38... Kd5 {[%clk 0:00:39.1]} 39. g5 {[%clk 0:01:14.6]} 39... Ke5 {[%clk
0:00:39.9]} 40. h5 {[%clk 0:01:13.9]} 40... Kf5 {[%clk 0:00:17.3]} 41. g6 {[%clk
0:01:08.2]} 41... hxg6 {[%clk 0:00:17.9]} 42. hxg6 {[%clk 0:01:09.4]} 42... Kxg6
{[%clk 0:00:18.8]} 43. Ke3 {[%clk 0:01:10.2]} 43... Kf5 {[%clk 0:00:19.9]} 44.
Ke2 {[%clk 0:01:08.5]} 44... Ke5 {[%clk 0:00:20.1]} 45. Ke3 {[%clk 0:01:08.2]}
45... Kd5 {[%clk 0:00:21.4]} 46. Kd2 {[%clk 0:01:07.9]} 46... Kc4 {[%clk
0:00:22.6]} 47. Kc2 {[%clk 0:01:04.4]} 47... e3 {[%clk 0:00:23.7]} 48. Kd1
{[%clk 0:00:58.7]} 48... Kd3 {[%clk 0:00:22.9]} 49. Ke1 {[%clk 0:00:57.8]} 49...
e2 {[%clk 0:00:23.9]} 50. c4 {[%clk 0:00:57.4]} 50... bxc4 {[%clk 0:00:22.8]}
51. Kf2 {[%clk 0:00:56.9]} 51... Kd2 {[%clk 0:00:24.2]} 52. Kf3 {[%clk
0:00:57.6]} 52... e1=Q {[%clk 0:00:25]} 53. Kf4 {[%clk 0:00:58.8]} 53... c3
{[%clk 0:00:25.8]} 54. Kf5 {[%clk 0:00:58.5]} 54... c2 {[%clk 0:00:27.1]} 55.
Kf6 {[%clk 0:00:59.3]} 55... c1=Q {[%clk 0:00:28]} 56. Kf5 {[%clk 0:01:00.4]}
56... Qc5+ {[%clk 0:00:28.6]} 57. Kf6 {[%clk 0:01:01.1]} 57... Qcf2+ {[%clk
0:00:29]} 58. Kg5 {[%clk 0:01:01.4]} 58... Qeg1+ {[%clk 0:00:30.9]} 59. Kh5
{[%clk 0:00:59.1]} 59... Qfh2# {[%clk 0:00:32.8]} 0

[Event "Open Nuevo Centro. Jornada 1"]
[Site "Chess.com"]
[Date "2020.06.19"]
[Round "3"]
[White "Saiz Sapena, Veronica"]
[Black "R�os Valle, Daniel "]
[Result "0-1"]
[WhiteElo "1577"]
[BlackElo "1189"]
[TimeControl "180+2"]
[EndTime "11:03:54 PDT"]
[Termination "Victoria de danielrios010309 por jaque mate"]

1. e4 {[%clk 0:02:54.4]} 1... c5 {[%clk 0:03:00.2]} 2. Nf3 {[%clk 0:02:54.4]}
2... Nc6 {[%clk 0:02:59.1]} 3. d4 {[%clk 0:02:55.1]} 3... cxd4 {[%clk
0:02:59.9]} 4. Nxd4 {[%clk 0:02:55.9]} 4... Nf6 {[%clk 0:03:01.7]} 5. Nc3 {[%clk
0:02:54.7]} 5... d6 {[%clk 0:02:56.9]} 6. Bb5 {[%clk 0:02:53.6]} 6... Bd7 {[%clk
0:02:53.3]} 7. O-O {[%clk 0:02:52.6]} 7... a6 {[%clk 0:02:50.7]} 8. Nxc6 {[%clk
0:02:52.4]} 8... Bxc6 {[%clk 0:02:46.4]} 9. Bxc6+ {[%clk 0:02:52.8]} 9... bxc6
{[%clk 0:02:47.9]} 10. Qf3 {[%clk 0:02:50.2]} 10... Qc7 {[%clk 0:02:43.2]} 11.
Bf4 {[%clk 0:02:48.6]} 11... e5 {[%clk 0:02:43.3]} 12. Bg5 {[%clk 0:02:44]}
12... Be7 {[%clk 0:02:42.5]} 13. Rfd1 {[%clk 0:02:42.9]} 13... O-O {[%clk
0:02:35.5]} 14. Rd2 {[%clk 0:02:39.3]} 14... Rfd8 {[%clk 0:02:35.8]} 15. Rad1
{[%clk 0:02:39.4]} 15... Rd7 {[%clk 0:02:24.4]} 16. Qe2 {[%clk 0:02:30]} 16...
Qb6 {[%clk 0:02:22.5]} 17. Bxf6 {[%clk 0:02:23.5]} 17... Bxf6 {[%clk 0:02:20.9]}
18. b3 {[%clk 0:02:23.7]} 18... Rad8 {[%clk 0:02:14.1]} 19. Na4 {[%clk
0:02:23.4]} 19... Qa5 {[%clk 0:02:03.8]} 20. Qc4 {[%clk 0:02:08.9]} 20... Qb5
{[%clk 0:01:52.6]} 21. Qxb5 {[%clk 0:02:04.1]} 21... axb5 {[%clk 0:01:45.8]} 22.
Nc5 {[%clk 0:02:04.2]} 22... Bg5 {[%clk 0:01:30]} 23. Rd3 {[%clk 0:01:59.8]}
23... Ra7 {[%clk 0:01:23.9]} 24. a4 {[%clk 0:01:55.7]} 24... bxa4 {[%clk
0:01:06.1]} 25. Nxa4 {[%clk 0:01:55.6]} 25... Be7 {[%clk 0:00:52.1]} 26. g3
{[%clk 0:01:51.5]} 26... h6 {[%clk 0:00:51.3]} 27. Kg2 {[%clk 0:01:51.5]} 27...
Kh7 {[%clk 0:00:50.5]} 28. h4 {[%clk 0:01:48.5]} 28... Ra5 {[%clk 0:00:38.9]}
29. Rf3 {[%clk 0:01:48.1]} 29... f6 {[%clk 0:00:28.9]} 30. Rfd3 {[%clk
0:01:47.9]} 30... d5 {[%clk 0:00:25.4]} 31. exd5 {[%clk 0:01:47.2]} 31... Raxd5
{[%clk 0:00:21.3]} 32. Rxd5 {[%clk 0:01:45]} 32... Rxd5 {[%clk 0:00:22]} 33.
Rxd5 {[%clk 0:01:31.5]} 33... cxd5 {[%clk 0:00:22.8]} 34. Kf3 {[%clk 0:01:32.1]}
34... Kg6 {[%clk 0:00:21.5]} 35. Ke3 {[%clk 0:01:28.2]} 35... Kf5 {[%clk
0:00:21.4]} 36. f3 {[%clk 0:01:27.7]} 36... d4+ {[%clk 0:00:19.1]} 37. Kd3
{[%clk 0:01:27.8]} 37... Bd6 {[%clk 0:00:16.7]} 38. Nb6 {[%clk 0:01:27.7]} 38...
Bc5 {[%clk 0:00:11.8]} 39. Nc4 {[%clk 0:01:27.2]} 39... g5 {[%clk 0:00:09.5]}
40. h5 {[%clk 0:01:26.5]} 40... g4 {[%clk 0:00:08.5]} 41. fxg4+ {[%clk
0:01:25.4]} 41... Kxg4 {[%clk 0:00:09.6]} 42. Ke4 {[%clk 0:01:27.3]} 42... Kxh5
{[%clk 0:00:07]} 43. Nd2 {[%clk 0:01:26.8]} 43... Kg4 {[%clk 0:00:07.1]} 44. Nf3
{[%clk 0:01:26.1]} 44... Kxg3 {[%clk 0:00:07.9]} 45. Nd2 {[%clk 0:01:24.7]}
45... h5 {[%clk 0:00:08.7]} 46. Kf5 {[%clk 0:01:24.1]} 46... Be7 {[%clk
0:00:08.4]} 47. Ke6 {[%clk 0:01:23.7]} 47... Bd8 {[%clk 0:00:05.6]} 48. Kf5
{[%clk 0:01:23.6]} 48... h4 {[%clk 0:00:06.2]} 49. Ne4+ {[%clk 0:01:24]} 49...
Kf3 {[%clk 0:00:03.9]} 50. Nd2+ {[%clk 0:01:22.9]} 50... Kg3 {[%clk 0:00:03.5]}
51. Ne4+ {[%clk 0:01:22.7]} 51... Kg2 {[%clk 0:00:04.1]} 52. Kg4 {[%clk
0:01:22.5]} 52... h3 {[%clk 0:00:04.9]} 53. Ng3 {[%clk 0:01:23.2]} 53... h2
{[%clk 0:00:05]} 54. b4 {[%clk 0:01:21.6]} 54... Bc7 {[%clk 0:00:02.9]} 55. b5
{[%clk 0:01:20.2]} 55... e4 {[%clk 0:00:03.2]} 56. Nxe4 {[%clk 0:01:19]} 56...
h1=Q {[%clk 0:00:03.3]} 57. b6 {[%clk 0:01:18.2]} 57... Qh3# {[%clk 0:00:04]}
0

[Event "Open Nuevo Centro. Jornada 1"]
[Site "Chess.com"]
[Date "2020.06.19"]
[Round "3"]
[White "Hern�ndez Tom�s, Efr�n"]
[Black "Morata Briones, Carlos"]
[Result "1-0"]
[WhiteElo "904"]
[BlackElo "525"]
[TimeControl "180+2"]
[EndTime "11:03:59 PDT"]
[Termination "Victoria de EfrenHT10 por jaque mate"]

1. e4 {[%clk 0:03:01.9]} 1... e5 {[%clk 0:03:00.2]} 2. Nf3 {[%clk 0:03:02]} 2...
Qf6 {[%clk 0:02:59.2]} 3. Bc4 {[%clk 0:02:57.7]} 3... Nc6 {[%clk 0:02:55.9]} 4.
d3 {[%clk 0:02:57.2]} 4... Nd4 {[%clk 0:02:55.3]} 5. Ng5 {[%clk 0:02:52.4]} 5...
Nh6 {[%clk 0:02:50.8]} 6. O-O {[%clk 0:02:50.9]} 6... d6 {[%clk 0:02:46.4]} 7.
c3 {[%clk 0:02:47]} 7... Ne6 {[%clk 0:02:43.6]} 8. Nxe6 {[%clk 0:02:46.7]} 8...
Bxe6 {[%clk 0:02:43]} 9. Bxe6 {[%clk 0:02:46.9]} 9... fxe6 {[%clk 0:02:42.9]}
10. Bxh6 {[%clk 0:02:46.8]} 10... Qxh6 {[%clk 0:02:42.8]} 11. Nd2 {[%clk
0:02:37.1]} 11... d5 {[%clk 0:02:41.6]} 12. exd5 {[%clk 0:02:36.7]} 12... exd5
{[%clk 0:02:42.1]} 13. c4 {[%clk 0:02:30.9]} 13... dxc4 {[%clk 0:02:41.1]} 14.
Nxc4 {[%clk 0:02:30.1]} 14... Rd8 {[%clk 0:02:31.9]} 15. Qe2 {[%clk 0:02:25.3]}
15... b5 {[%clk 0:02:26.8]} 16. Qxe5+ {[%clk 0:02:22.1]} 16... Be7 {[%clk
0:02:24.1]} 17. Rfe1 {[%clk 0:02:18]} 17... Rd7 {[%clk 0:02:18.3]} 18. Na5
{[%clk 0:02:01.6]} 18... O-O {[%clk 0:01:54.6]} 19. Nc6 {[%clk 0:01:58.6]} 19...
Bd6 {[%clk 0:01:49.5]} 20. Qe6+ {[%clk 0:01:47.4]} 20... Kh8 {[%clk 0:01:39.1]}
21. Qxd7 {[%clk 0:01:45]} 21... Qxh2+ {[%clk 0:01:36]} 22. Kf1 {[%clk
0:01:44.4]} 22... Qg3 {[%clk 0:01:16.8]} 23. f3 {[%clk 0:01:36]} 23... Qf4
{[%clk 0:01:08.8]} 24. Re4 {[%clk 0:01:30.6]} 24... Qf6 {[%clk 0:01:01.9]} 25.
Qe6 {[%clk 0:01:25.2]} 25... h6 {[%clk 0:00:30.5]} 26. Qxf6 {[%clk 0:01:24.3]}
26... Rxf6 {[%clk 0:00:26.9]} 27. Nxa7 {[%clk 0:01:23]} 27... Rf5 {[%clk
0:00:24.4]} 28. Re8+ {[%clk 0:01:18.9]} 28... Kh7 {[%clk 0:00:23.7]} 29. Nxb5
{[%clk 0:01:17.8]} 29... Bc5 {[%clk 0:00:19.6]} 30. Nxc7 {[%clk 0:01:12.2]}
30... Bd6 {[%clk 0:00:19.1]} 31. Rc1 {[%clk 0:00:56.6]} 31... Rf8 {[%clk
0:00:17.2]} 32. Rxf8 {[%clk 0:00:54.5]} 32... Bxf8 {[%clk 0:00:17.6]} 33. Ne6
{[%clk 0:00:54.8]} 33... Be7 {[%clk 0:00:17.6]} 34. Rc7 {[%clk 0:00:53.7]} 34...
Bf6 {[%clk 0:00:18.2]} 35. b4 {[%clk 0:00:50.9]} 35... Be5 {[%clk 0:00:18.4]}
36. Rc5 {[%clk 0:00:47.3]} 36... Bd6 {[%clk 0:00:18]} 37. Rf5 {[%clk 0:00:41.9]}
37... Kg6 {[%clk 0:00:17.6]} 38. Rb5 {[%clk 0:00:39.6]} 38... Kf6 {[%clk
0:00:17.2]} 39. Nd4 {[%clk 0:00:37]} 39... Ke7 {[%clk 0:00:16.6]} 40. a4 {[%clk
0:00:37.4]} 40... Kd7 {[%clk 0:00:16.6]} 41. a5 {[%clk 0:00:38.8]} 41... Kc7
{[%clk 0:00:16.3]} 42. a6 {[%clk 0:00:38.7]} 42... Kc8 {[%clk 0:00:16.7]} 43. a7
{[%clk 0:00:39.5]} 43... Be5 {[%clk 0:00:15.3]} 44. a8=Q+ {[%clk 0:00:38.1]}
44... Bb8 {[%clk 0:00:15.2]} 45. Qxb8+ {[%clk 0:00:36.6]} 45... Kd7 {[%clk
0:00:15.9]} 46. Qe5 {[%clk 0:00:36.4]} 46... Kc8 {[%clk 0:00:16.3]} 47. Rc5+
{[%clk 0:00:32.6]} 47... Kb7 {[%clk 0:00:16.5]} 48. Qd6 {[%clk 0:00:30.5]} 48...
Ka7 {[%clk 0:00:15.7]} 49. Rc7+ {[%clk 0:00:31.1]} 49... Kb8 {[%clk 0:00:14.3]}
50. Qd8# {[%clk 0:00:31.6]} 1

[Event "Open Nuevo Centro. Jornada 1"]
[Site "Chess.com"]
[Date "2020.06.19"]
[Round "3"]
[White "Beneyto de Ramon, Guillermo"]
[Black "Gutierrez Marco, Dario"]
[Result "0-1"]
[WhiteElo "1488"]
[BlackElo "1932"]
[TimeControl "180+2"]
[EndTime "11:04:02 PDT"]
[Termination "Victoria de rususs por abandono"]

1. c4 {[%clk 0:03:01.8]} 1... e5 {[%clk 0:02:54.5]} 2. Nc3 {[%clk 0:03:02.8]}
2... Nf6 {[%clk 0:02:55.1]} 3. g3 {[%clk 0:03:04]} 3... Bc5 {[%clk 0:02:55.5]}
4. Bg2 {[%clk 0:03:05.1]} 4... Nc6 {[%clk 0:02:56.5]} 5. Nf3 {[%clk 0:03:05.8]}
5... d6 {[%clk 0:02:53]} 6. d3 {[%clk 0:03:06.3]} 6... O-O {[%clk 0:02:53.4]} 7.
Bg5 {[%clk 0:03:06.4]} 7... h6 {[%clk 0:02:54.4]} 8. Bh4 {[%clk 0:03:03.8]} 8...
Bg4 {[%clk 0:02:31.7]} 9. Nd5 {[%clk 0:03:00.9]} 9... Kh7 {[%clk 0:02:13.5]} 10.
Bxf6 {[%clk 0:02:56.8]} 10... gxf6 {[%clk 0:02:15.4]} 11. O-O {[%clk 0:02:44.2]}
11... f5 {[%clk 0:02:05.3]} 12. Nh4 {[%clk 0:02:35.1]} 12... Qg5 {[%clk
0:01:17]} 13. h3 {[%clk 0:02:19.8]} 13... Bh5 {[%clk 0:01:17.4]} 14. Kh2 {[%clk
0:01:58.3]} 14... Nd4 {[%clk 0:01:15.4]} 15. Nf3 {[%clk 0:01:42.5]} 15... Nxf3+
{[%clk 0:01:04.9]} 16. Bxf3 {[%clk 0:01:37]} 16... Bxf3 {[%clk 0:01:04.8]} 17.
exf3 {[%clk 0:01:38.9]} 17... Rg8 {[%clk 0:01:05.1]} 18. g4 {[%clk 0:01:11.6]}
18... c6 {[%clk 0:01:01.6]} 19. Nc3 {[%clk 0:01:01.1]} 19... Qf4+ {[%clk
0:00:57.6]} 20. Kg2 {[%clk 0:00:59.3]} 20... h5 {[%clk 0:00:54.3]} 21. Rh1
{[%clk 0:00:57.1]} 21... Kg7 {[%clk 0:00:46.4]} 22. Qc1 {[%clk 0:00:41.8]} 22...
fxg4 {[%clk 0:00:37.6]} 23. Qxf4 {[%clk 0:00:28.3]} 23... exf4 {[%clk
0:00:39.5]} 24. fxg4 {[%clk 0:00:27.3]} 24... hxg4 {[%clk 0:00:40.3]} 25. hxg4
{[%clk 0:00:28.4]} 25... Kf8 {[%clk 0:00:41]} 26. Kf3 {[%clk 0:00:25.5]} 26...
Ke7 {[%clk 0:00:35.1]} 27. Ne4 {[%clk 0:00:23.1]} 27... Bd4 {[%clk 0:00:31.8]}
28. Rab1 {[%clk 0:00:22]} 28... d5 {[%clk 0:00:23.4]} 29. Nc3 {[%clk 0:00:18.5]}
29... dxc4 {[%clk 0:00:21.4]} 30. dxc4 {[%clk 0:00:19.6]} 30... Rae8 {[%clk
0:00:16.5]} 31. Rhe1+ {[%clk 0:00:20.4]} 31... Kf8 {[%clk 0:00:17.6]} 32. Rxe8+
{[%clk 0:00:20.8]} 32... Kxe8 {[%clk 0:00:19.5]} 33. Re1+ {[%clk 0:00:20.8]}
33... Kf8 {[%clk 0:00:17.4]} 34. Re4 {[%clk 0:00:21.5]} 34... c5 {[%clk
0:00:17.7]} 35. Rxf4 {[%clk 0:00:13.6]} 35... Rh8 {[%clk 0:00:18.4]} 36. Kg2
{[%clk 0:00:13.6]} 36... Rg8 {[%clk 0:00:17.8]} 37. f3 {[%clk 0:00:14.3]} 37...
Ke7 {[%clk 0:00:18.8]} 38. Kf1 {[%clk 0:00:11.8]} 38... Kd7 {[%clk 0:00:18.1]}
39. Ke2 {[%clk 0:00:13]} 39... Re8+ {[%clk 0:00:18.7]} 40. Kd3 {[%clk
0:00:13.8]} 40... Re3+ {[%clk 0:00:19.2]} 41. Kd2 {[%clk 0:00:15]} 41... Re7
{[%clk 0:00:18.5]} 42. b3 {[%clk 0:00:15.9]} 42... Kc6 {[%clk 0:00:18.6]} 43.
Nb5 {[%clk 0:00:16.4]} 43... Be3+ {[%clk 0:00:18.9]} 44. Kd3 {[%clk 0:00:16.9]}
44... Bxf4 {[%clk 0:00:20.8]} 45. Nc3 {[%clk 0:00:16.8]} 45... Re3+ {[%clk
0:00:21]} 46. Kd2 {[%clk 0:00:18]} 46... Rxf3+ {[%clk 0:00:21.9]} 47. Ke2 {[%clk
0:00:19.3]} 47... Rxc3 {[%clk 0:00:22.5]} 0

[Event "Open Nuevo Centro. Jornada 1"]
[Site "Chess.com"]
[Date "2020.06.19"]
[Round "3"]
[White "Lloret Ramis, Juan Jos�"]
[Black "Martinez Villena, David"]
[Result "0-1"]
[WhiteElo "1975"]
[BlackElo "1713"]
[TimeControl "180+2"]
[EndTime "11:04:17 PDT"]
[Termination "Victoria de DavidMVAlaquas por abandono"]

1. c4 {[%clk 0:03:01.9]} 1... c5 {[%clk 0:02:59.5]} 2. Nc3 {[%clk 0:03:02]} 2...
Nf6 {[%clk 0:03:00.1]} 3. Nf3 {[%clk 0:03:03.3]} 3... Nc6 {[%clk 0:03:00]} 4. g3
{[%clk 0:03:04.6]} 4... d5 {[%clk 0:03:00.2]} 5. cxd5 {[%clk 0:03:04.6]} 5...
Nxd5 {[%clk 0:03:02.1]} 6. Bg2 {[%clk 0:03:02.1]} 6... Nc7 {[%clk 0:03:02.2]} 7.
O-O {[%clk 0:03:02.4]} 7... e5 {[%clk 0:03:02.8]} 8. d3 {[%clk 0:02:54.6]} 8...
Be7 {[%clk 0:03:03.1]} 9. Nd2 {[%clk 0:02:53.7]} 9... O-O {[%clk 0:02:53]} 10.
Bxc6 {[%clk 0:02:52.6]} 10... bxc6 {[%clk 0:02:53.2]} 11. Qa4 {[%clk 0:02:48.9]}
11... Bh3 {[%clk 0:02:44.5]} 12. Re1 {[%clk 0:02:41.4]} 12... Qd7 {[%clk
0:02:44.1]} 13. Nc4 {[%clk 0:02:37.7]} 13... f6 {[%clk 0:02:18.5]} 14. Na5
{[%clk 0:02:37.3]} 14... Nb5 {[%clk 0:02:06]} 15. Be3 {[%clk 0:01:34]} 15... Kh8
{[%clk 0:01:52.3]} 16. Rac1 {[%clk 0:01:30.6]} 16... Rfc8 {[%clk 0:01:39.3]} 17.
Ne4 {[%clk 0:01:26.7]} 17... Nd4 {[%clk 0:01:10.8]} 18. Nxc5 {[%clk 0:01:17.7]}
18... Bxc5 {[%clk 0:01:07.4]} 19. Rxc5 {[%clk 0:01:17.1]} 19... Qg4 {[%clk
0:00:37.8]} 20. f3 {[%clk 0:00:52.3]} 20... Nxf3+ {[%clk 0:00:37.3]} 21. exf3
{[%clk 0:00:52.5]} 21... Qxa4 {[%clk 0:00:37.8]} 22. a3 {[%clk 0:00:36.5]} 22...
Rab8 {[%clk 0:00:29.5]} 23. Nc4 {[%clk 0:00:27.3]} 23... Qb3 {[%clk 0:00:23.7]}
24. Nd6 {[%clk 0:00:16.9]} 24... Qxd3 {[%clk 0:00:19.2]} 25. Nxc8 {[%clk
0:00:14.5]} 25... Rxc8 {[%clk 0:00:21.1]} 26. Kf2 {[%clk 0:00:10.6]} 26... h6
{[%clk 0:00:21.5]} 27. g4 {[%clk 0:00:11.8]} 27... f5 {[%clk 0:00:20.3]} 28.
gxf5 {[%clk 0:00:11.2]} 28... Bxf5 {[%clk 0:00:20.6]} 29. Rec1 {[%clk 0:00:11]}
29... e4 {[%clk 0:00:18.6]} 30. f4 {[%clk 0:00:11]} 30... Qd7 {[%clk 0:00:18]}
31. Re5 {[%clk 0:00:09.4]} 31... Qf7 {[%clk 0:00:14]} 32. Rcc5 {[%clk
0:00:09.5]} 32... Bd7 {[%clk 0:00:13.7]} 33. b4 {[%clk 0:00:10.5]} 33... Qa2+
{[%clk 0:00:12.3]} 34. Kg3 {[%clk 0:00:11]} 34... Qxa3 {[%clk 0:00:13.3]} 35.
Rxe4 {[%clk 0:00:11.3]} 35... Qd3 {[%clk 0:00:13.2]} 36. Rce5 {[%clk 0:00:10.8]}
36... Qd1 {[%clk 0:00:12.7]} 37. Kf2 {[%clk 0:00:11.5]} 37... Qc2+ {[%clk
0:00:13]} 38. Kg3 {[%clk 0:00:10.6]} 38... a6 {[%clk 0:00:11.8]} 39. Bd4 {[%clk
0:00:11.6]} 39... Qd3+ {[%clk 0:00:12]} 40. Kf2 {[%clk 0:00:11.3]} 40... Qc2+
{[%clk 0:00:12.4]} 41. Kg3 {[%clk 0:00:11.3]} 41... Rf8 {[%clk 0:00:12.8]} 42.
Re7 {[%clk 0:00:11.3]} 42... Rg8 {[%clk 0:00:11.9]} 43. Rxd7 {[%clk 0:00:11.2]}
43... Qxe4 {[%clk 0:00:12.2]} 44. Be5 {[%clk 0:00:10.2]} 44... Qe3+ {[%clk
0:00:12.6]} 45. Kg4 {[%clk 0:00:11.3]} 45... Kh7 {[%clk 0:00:14]} 46. Kf5 {[%clk
0:00:12.1]} 46... Qb3 {[%clk 0:00:12.2]} 47. h4 {[%clk 0:00:12]} 47... Qxb4
{[%clk 0:00:12.1]} 48. h5 {[%clk 0:00:12.4]} 48... Qf8+ {[%clk 0:00:12.9]} 49.
Kg4 {[%clk 0:00:12]} 49... Qc8 {[%clk 0:00:14.5]} 0